bitfinex-derivatives/quotes_ETHF0:USTF0_20260305
["timestamp","ask_amount","ask_price","bid_price","bid_amount"]
[1772732166246,0.55693373,2061.9,2060.9,0.57743046]
[1772732166441,0.55693373,2061.8,2060.9,0.57743046]
[1772732167236,0.55693373,2062.0,2061.1,0.57743046]
[1772732167441,0.56227045,2062.2,2061.1,0.57743046]
[1772732168144,0.55693373,2062.0,2061.1,0.57743046]
[1772732169646,0.55693373,2062.1,2061.1,0.57743046]
[1772732169841,0.55693373,2062.0,2061.1,0.57743046]
[1772732174550,0.55693373,2062.0,2061.3,0.57743046]
[1772732174751,0.55693373,2061.9,2061.3,0.57743046]
[1772732174952,0.55693373,2061.9,2061.1,0.57743046]
[1772732175153,0.55693373,2061.5,2060.9,0.57743046]
[1772732179445,0.55693373,2061.5,2060.7,0.57743046]
[1772732180249,0.24249,2061.6,2060.7,0.57743046]
[1772732180449,0.79942373,2061.6,2060.7,0.57743046]
[1772732181049,0.55693373,2061.5,2060.6,41.37743046]
[1772732181355,0.55693373,2061.5,2060.6,0.57743046]
[1772732182151,0.55693373,2061.9,2060.8,0.57743046]
[1772732182347,0.55693373,2061.9,2061.0,0.57743046]
[1772732183950,0.55693373,2062.1,2061.2,0.57743046]
[1772732184153,0.00533672,2062.2,2061.3,0.57743046]
[1772732184348,0.55693373,2062.5,2061.5,0.57743046]
[1772732184550,0.55693373,2062.7,2061.8,0.57743046]
[1772732184752,0.55693373,2062.7,2061.9,8.22]
[1772732184948,0.55693373,2062.5,2061.7,0.57743046]
[1772732185349,0.56158935,2062.5,2061.7,0.58089195]
[1772732185859,0.00465562,2062.5,2061.7,0.58089195]
[1772732186055,0.55693373,2062.3,2061.7,0.58089195]
[1772732186255,0.55693373,2062.3,2061.7,0.00346149]
[1772732186655,0.55693373,2062.1,2061.5,0.57743046]
[1772732186859,0.55693373,2061.9,2060.9,0.57743046]
[1772732187958,0.59563883,2062.2,2061.0,0.55455637]
[1772732188362,0.59563883,2062.2,2061.2,0.55455637]
[1772732189051,0.00465562,2062.5,2061.0,0.55455637]
[1772732189052,0.59563883,2062.0,2061.0,0.55455637]
[1772732189255,0.59563883,2062.0,2061.1,8.237]
[1772732189453,0.59563883,2061.8,2060.9,0.00415623]
[1772732190665,0.59563883,2061.8,2060.9,0.56360679]
[1772732190963,0.59563883,2061.8,2060.9,0.00415623]
[1772732192061,0.57820859,2061.6,2060.9,0.00415623]
[1772732192261,0.47811299,2061.7,2060.3,0.55945056]
[1772732192262,0.57820859,2061.4,2060.3,0.55945056]
[1772732192569,5.83595948,2061.5,2059.9,0.55945056]
[1772732192570,0.57820859,2061.0,2059.9,0.55945056]
[1772732192862,0.57820859,2060.8,2059.4,0.24274]
[1772732193063,0.57820859,2060.2,2059.1,0.55945056]
[1772732193263,0.58390817,2060.2,2059.1,0.56488058]
[1772732193469,0.00569958,2060.2,2059.3,0.55945056]
[1772732193667,0.00569958,2060.2,2059.5,0.55945056]
[1772732194064,0.57820859,2060.7,2059.7,0.55945056]
[1772732194360,6.341,2061.4,2059.9,0.55945056]
[1772732194361,0.57820859,2061.3,2059.9,0.55945056]
[1772732194567,0.57820859,2061.3,2060.1,0.55945056]
[1772732194964,0.58342555,2061.3,2060.2,0.55945056]
[1772732195869,0.00521696,2061.3,2060.4,0.55945056]
[1772732196765,0.58342555,2061.3,2060.4,0.55945056]
[1772732197467,0.57820859,2061.1,2060.1,0.55945056]
[1772732197670,0.57820859,2060.9,2060.0,0.55945056]
[1772732198175,0.57820859,2060.9,2059.9,0.55945056]
[1772732198574,0.57820859,2060.9,2059.9,8.82945056]
[1772732200071,0.57820859,2060.9,2059.4,10.71513868]
[1772732200072,0.57820859,2060.7,2059.7,0.55945056]
[1772732200774,0.57820859,2060.7,2059.4,8.274]
[1772732200978,0.57820859,2060.3,2059.1,0.56488058]
[1772732201373,0.57820859,2060.3,2059.3,0.55945056]
[1772732201571,0.57820859,2060.3,2059.2,40.8]
[1772732201572,0.57820859,2060.8,2059.7,0.55945056]
[1772732201772,0.57820859,2060.8,2059.9,0.55945056]
[1772732202878,0.57820859,2061.0,2060.1,0.55945056]
[1772732203976,0.00521696,2061.3,2060.3,0.55945056]
[1772732204182,0.00521696,2061.3,2060.5,0.55945056]
[1772732204479,0.58342555,2061.3,2060.5,8.83845056]
[1772732204872,0.58342555,2061.3,2060.6,0.55945056]
[1772732204873,0.00521696,2061.3,2060.6,0.55945056]
[1772732205078,0.00521696,2061.3,2060.6,0.5628542]
[1772732205481,0.58342555,2061.3,2060.6,0.5628542]
[1772732206479,0.00521696,2061.3,2060.6,0.5628542]
[1772732206881,0.58342555,2061.3,2060.6,41.3628542]
[1772732207079,0.58342555,2061.3,2060.6,49.6428542]
[1772732208083,0.58342555,2061.3,2060.6,8.8428542]
[1772732208683,0.58342555,2061.3,2060.6,0.00340364]
[1772732209280,0.58342555,2061.3,2060.6,0.5628542]
[1772732212282,0.57820859,2061.7,2060.7,0.55945056]
[1772732212584,0.57820859,2061.9,2060.9,0.55945056]
[1772732212778,0.57820859,2061.9,2061.1,0.55945056]
[1772732213188,0.57820859,2061.7,2061.0,8.298]
[1772732213680,0.00479137,2061.9,2061.0,8.298]
[1772732213681,0.00479137,2061.9,2061.1,0.55945056]
[1772732213883,0.58299996,2061.9,2061.1,0.55945056]
[1772732214184,0.58299996,2061.9,2060.7,8.86345056]
[1772732214185,0.57820859,2061.8,2060.7,8.86345056]
[1772732214585,0.57820859,2061.6,2060.8,0.55945056]
[1772732214986,0.58299996,2061.9,2060.8,0.55945056]
[1772732215379,0.57820859,2061.7,2060.8,8.86745056]
[1772732215982,0.57820859,2061.7,2060.9,0.55945056]
[1772732216277,0.57820859,2061.7,2060.8,8.308]
[1772732216483,0.57820859,2061.7,2060.7,8.87045056]
[1772732216990,0.57820859,2061.5,2060.7,0.55945056]
[1772732218392,0.57820859,2061.8,2060.7,0.55945056]
[1772732218687,0.57820859,2061.7,2060.7,8.87645056]
[1772732219293,0.57820859,2061.7,2060.8,0.55945056]
[1772732219493,0.24249,2061.6,2060.8,0.55945056]
[1772732219693,0.57820859,2061.5,2060.8,0.55945056]
[1772732220993,0.5608149,2061.7,2060.8,0.55945056]
[1772732221796,0.5608149,2061.6,2060.6,0.55694546]
[1772732222492,0.5608149,2061.8,2060.8,0.55354182]
[1772732225000,0.5608149,2061.6,2060.6,0.55694546]
[1772732225200,0.5608149,2061.4,2060.7,0.55354182]
[1772732225699,0.5608149,2061.2,2060.6,0.00340364]
[1772732225894,3.97504966,2061.9,2060.6,0.55694546]
[1772732225895,0.5608149,2061.6,2060.6,0.55694546]
[1772732226203,0.5608149,2061.6,2060.8,0.55354182]
[1772732226503,0.00479137,2061.9,2061.2,0.55354182]
[1772732226703,0.00479137,2061.9,2061.4,0.55354182]
[1772732226899,0.56560627,2061.9,2061.4,0.55354182]
[1772732227198,0.5608149,2062.8,2061.6,0.55354182]
[1772732227408,0.5608149,2062.8,2061.8,0.55354182]
[1772732227703,0.5608149,2063.3,2062.0,0.55354182]
[1772732228100,0.56627922,2063.3,2062.0,0.55354182]
[1772732229504,0.56627922,2063.3,2062.2,0.55354182]
[1772732229703,0.56627922,2063.3,2062.2,0.55892663]
[1772732229904,0.00546432,2063.3,2062.2,0.55892663]
[1772732230103,0.00546432,2063.3,2062.4,0.55354182]
[1772732230301,0.5608149,2064.0,2062.6,0.55354182]
[1772732231204,0.5650749,2064.0,2062.6,0.55354182]
[1772732232100,0.00426,2064.0,2062.8,0.55354182]
[1772732232502,0.5608149,2064.3,2063.0,0.55354182]
[1772732232703,0.5608149,2064.3,2063.2,0.55354182]
[1772732233100,0.5608149,2064.5,2063.2,0.55354182]
[1772732233306,0.5608149,2064.5,2063.4,0.55354182]
[1772732233605,0.5608149,2064.7,2063.4,0.55354182]
[1772732233802,0.00444606,2064.5,2063.4,0.55354182]
[1772732234409,0.56526096,2064.5,2063.4,0.55354182]
[1772732234604,0.5608149,2064.3,2063.4,0.55354182]
[1772732236012,0.00444606,2064.5,2063.4,0.55354182]
[1772732236515,0.5608149,2064.4,2063.4,0.55354182]
[1772732236809,0.5608149,2064.3,2063.5,0.55354182]
[1772732237608,0.56526096,2064.5,2063.5,0.55354182]
[1772732237810,0.00444606,2064.5,2063.5,0.55354182]
[1772732238007,0.56526096,2064.5,2063.7,0.55354182]
[1772732238214,0.56526096,2064.5,2063.7,0.00616727]
[1772732238215,0.5608149,2064.3,2063.7,0.00616727]
[1772732239006,0.5608149,2064.3,2062.3,5.9633]
[1772732239007,0.5608149,2064.1,2063.2,0.55354182]
[1772732239208,0.5608149,2064.1,2063.2,8.94254182]
[1772732239514,0.5608149,2064.1,2063.2,0.55354182]
[1772732239711,0.5608149,2063.7,2063.0,8.94454182]
[1772732239913,0.5608149,2063.5,2062.8,0.55354182]
[1772732240111,0.5608149,2063.5,2063.0,0.00503201]
[1772732240808,0.24219,2064.2,2063.0,0.55857383]
[1772732241014,0.5608149,2064.1,2063.0,0.55857383]
[1772732241711,0.5608149,2063.7,2063.0,0.00503201]
[1772732242010,0.5608149,2063.7,2063.0,0.55857383]
[1772732242212,0.5608149,2064.2,2063.0,0.55857383]
[1772732244210,0.5608149,2064.2,2063.1,0.55354182]
[1772732244416,0.5608149,2064.4,2063.3,0.55354182]
[1772732244805,0.5608149,2064.4,2063.4,8.96854182]
[1772732244806,0.5608149,2064.3,2063.4,8.96854182]
[1772732245012,0.5608149,2064.1,2063.2,0.55354182]
[1772732245412,0.5608149,2064.1,2063.0,8.97357383]
[1772732245611,0.5608149,2064.1,2063.1,0.55354182]
[1772732246011,0.5608149,2064.4,2063.1,0.55354182]
[1772732246211,0.5608149,2064.4,2063.2,0.55354182]
[1772732246409,0.5608149,2065.2,2063.4,0.55354182]
[1772732246619,5.95376,2065.7,2064.2,0.55354182]
[1772732246620,0.5608149,2065.7,2064.2,0.55354182]
[1772732246807,6.42527058,2066.6,2064.4,0.55354182]
[1772732246808,0.5608149,2066.1,2064.4,0.55354182]
[1772732247012,0.5608149,2066.1,2064.6,0.55354182]
[1772732247208,0.54866567,2066.5,2064.9,0.59746809]
[1772732247407,0.54866567,2066.3,2065.1,0.59746809]
[1772732247812,0.00439654,2066.5,2065.3,0.59746809]
[1772732248014,9.91819829,2067.7,2065.2,0.24207]
[1772732248015,0.54866567,2067.8,2066.1,0.59746809]
[1772732248218,0.54866567,2067.8,2066.3,0.59746809]
[1772732248417,0.54866567,2068.2,2066.7,0.59746809]
[1772732248617,0.54866567,2068.0,2066.7,0.59746809]
[1772732249011,6.18891,2067.9,2066.7,0.60127709]
[1772732249314,0.54866567,2067.6,2066.7,0.60127709]
[1772732249710,0.54866567,2067.9,2066.7,0.60127709]
[1772732250215,0.60024623,2067.5,2066.7,0.003809]
[1772732250714,0.60024623,2067.9,2066.7,0.59243856]
[1772732250916,0.00509301,2068.0,2066.8,0.58862956]
[1772732251109,6.18896,2067.9,2066.8,0.58862956]
[1772732251309,0.60024623,2067.6,2066.7,0.59243856]
[1772732251814,0.60024623,2067.6,2066.8,0.58862956]
[1772732252215,0.60024623,2067.9,2066.8,0.58862956]
[1772732252416,0.60024623,2068.7,2067.2,0.58862956]
[1772732252609,1.3151889,2069.3,2067.4,0.58862956]
[1772732252809,0.60024623,2069.0,2067.4,0.58862956]
[1772732253518,0.60024623,2068.4,2067.4,0.58862956]
[1772732253910,0.24168,2068.5,2067.4,0.58862956]
[1772732253911,0.60024623,2068.2,2067.4,0.58862956]
[1772732254316,0.60024623,2067.8,2066.8,0.58862956]
[1772732254615,0.60024623,2068.9,2067.2,0.58862956]
[1772732254820,0.60024623,2068.9,2067.3,0.58862956]
[1772732255014,0.60024623,2068.9,2067.5,0.58862956]
[1772732255410,0.60024623,2068.7,2067.5,0.58862956]
[1772732255611,0.60024623,2068.5,2067.0,8.461]
[1772732255811,0.60024623,2068.3,2067.1,0.58862956]
[1772732256015,0.60024623,2067.9,2066.5,0.58862956]
[1772732256215,0.60024623,2067.9,2066.7,0.59243856]
[1772732256412,0.60024623,2068.5,2066.7,0.59243856]
[1772732256917,12.28323,2068.6,2066.7,0.59243856]
[1772732256918,0.60024623,2068.0,2066.9,0.58862956]
[1772732257918,0.60024623,2068.0,2067.0,0.58862956]
[1772732258312,0.60024623,2068.0,2066.8,0.58862956]
[1772732258718,0.60024623,2067.8,2066.8,40.8]
[1772732258914,0.60024623,2067.8,2066.7,0.003809]
[1772732259120,0.00509301,2067.5,2066.7,0.003809]
[1772732259321,0.60024623,2067.4,2066.7,0.003809]
[1772732259722,0.60533924,2067.1,2066.7,0.003809]
[1772732260024,0.60024623,2067.1,2066.2,49.87862956]
[1772732260421,0.00388889,2067.5,2066.3,0.58862956]
[1772732260422,0.60024623,2067.4,2066.3,0.58862956]
[1772732260618,5.94458,2068.9,2066.7,0.58862956]
[1772732260619,0.60024623,2068.0,2066.7,0.58862956]
[1772732261523,0.60024623,2067.8,2066.7,0.58862956]
[1772732261724,0.60506523,2067.8,2066.7,0.5937908]
[1772732261915,0.60024623,2067.7,2066.7,0.5937908]
[1772732263324,0.004819,2067.8,2066.7,0.5937908]
[1772732264422,0.60024623,2068.2,2066.9,0.58862956]
[1772732265126,0.60024623,2068.0,2066.9,0.58862956]
[1772732265516,0.60024623,2067.8,2067.0,40.8]
[1772732265715,0.60024623,2067.8,2066.8,0.58862956]
[1772732266115,0.00563681,2068.0,2066.8,0.58862956]
[1772732266116,0.60533924,2067.7,2066.9,40.8]
[1772732266315,0.60024623,2067.7,2066.8,0.58862956]
[1772732266516,0.00509301,2067.5,2066.8,0.58862956]
[1772732266825,0.60024623,2067.7,2066.8,0.58862956]
[1772732267122,0.60533924,2067.6,2066.8,0.58862956]
[1772732267425,0.60024623,2067.6,2066.8,0.58862956]
[1772732267624,0.60533924,2067.6,2066.8,0.58862956]
[1772732268016,0.60024623,2067.9,2066.8,0.58862956]
[1772732268222,0.60024623,2068.5,2067.2,0.58862956]
[1772732268425,0.60024623,2068.5,2067.1,5.94941]
[1772732268426,0.60024623,2069.3,2067.6,0.58862956]
[1772732268722,0.60024623,2069.1,2067.6,0.58862956]
[1772732269224,0.60024623,2068.7,2067.3,0.58862956]
[1772732269524,0.60024623,2068.3,2067.1,0.58862956]
[1772732269727,0.60024623,2068.1,2067.1,0.58862956]
[1772732270116,0.60533924,2067.9,2067.1,0.58862956]
[1772732270322,0.60024623,2067.9,2067.1,0.58862956]
[1772732270523,0.00509301,2067.9,2067.1,0.58862956]
[1772732270922,0.60024623,2067.9,2067.1,0.58862956]
[1772732271228,0.60024623,2067.8,2067.1,0.58862956]
[1772732271428,0.60024623,2067.8,2066.8,0.58862956]
[1772732271622,0.60533924,2067.8,2066.8,0.58862956]
[1772732271925,0.60024623,2067.8,2066.8,0.58862956]
[1772732272123,0.60024623,2067.8,2066.8,0.83050956]
[1772732272426,0.60024623,2067.8,2066.9,0.58862956]
[1772732272620,0.60024623,2068.3,2066.9,0.58862956]
[1772732273218,0.60533924,2068.3,2066.9,0.58862956]
[1772732273422,0.60024623,2068.3,2066.9,0.58862956]
[1772732273617,0.60024623,2068.1,2066.9,0.58862956]
[1772732273818,0.60024623,2067.8,2066.9,0.58862956]
[1772732274320,0.60024623,2067.8,2066.8,0.58862956]
[1772732274725,0.60533924,2067.5,2066.8,0.58862956]
[1772732275027,0.00379806,2067.5,2066.8,0.58862956]
[1772732275529,0.60024623,2068.0,2067.0,0.58862956]
[1772732276218,0.60024623,2067.8,2067.0,0.58862956]
[1772732276725,0.60516794,2067.8,2067.0,0.58862956]
[1772732277327,0.00492171,2067.8,2067.0,0.58862956]
[1772732277527,0.60024623,2068.3,2067.4,0.58862956]
[1772732277728,0.60024623,2068.3,2067.5,0.58862956]
[1772732278026,0.60024623,2068.1,2067.2,0.58862956]
[1772732278432,0.6046338,2068.1,2067.2,0.58862956]
[1772732278833,0.60024623,2068.0,2067.2,0.58862956]
[1772732279034,0.00438757,2068.1,2067.2,0.58862956]
[1772732279230,0.60024623,2068.3,2067.3,0.58862956]
[1772732279531,0.60533924,2068.3,2067.4,0.24181]
[1772732279734,0.60024623,2068.6,2067.6,0.58862956]
[1772732280227,0.00578767,2068.6,2067.8,0.57845758]
[1772732280431,0.00578767,2068.6,2068.0,0.57845758]
[1772732280837,0.00578767,2068.6,2068.1,0.57845758]
[1772732281036,0.58194431,2069.2,2068.2,0.57845758]
[1772732281229,0.58194431,2069.0,2068.0,40.8]
[1772732281436,0.58194431,2068.6,2067.6,0.57845758]
[1772732281832,0.00509301,2068.3,2067.6,0.57845758]
[1772732282032,0.0051037,2068.3,2067.6,0.5827339]
[1772732282433,0.58194431,2068.6,2067.6,0.5827339]
[1772732282434,0.58194431,2069.1,2067.8,0.57845758]
[1772732282630,0.58194431,2068.8,2067.7,40.8]
[1772732282936,0.58194431,2068.3,2067.7,40.8]
[1772732283140,0.58194431,2068.3,2067.6,0.00427632]
[1772732283433,0.00509301,2067.8,2067.3,0.57845758]
[1772732283637,0.58194431,2068.1,2067.3,0.57845758]
[1772732283831,0.00509301,2067.7,2067.3,0.57845758]
[1772732284231,0.58194431,2068.1,2067.3,0.57845758]
[1772732284429,0.58194431,2068.0,2067.3,0.58227419]
[1772732284633,0.58544718,2068.1,2067.3,0.58227419]
[1772732284833,0.00509301,2068.0,2067.3,0.58227419]
[1772732285140,3.93283545,2068.7,2067.3,0.58227419]
[1772732285141,0.58194431,2068.8,2067.7,0.57845758]
[1772732285437,0.58194431,2069.4,2068.1,0.57845758]
[1772732285632,0.58194431,2069.2,2068.1,0.57845758]
[1772732285839,0.58194431,2069.0,2068.1,0.57845758]
[1772732286140,0.58703732,2068.9,2068.1,0.57845758]
[1772732286333,0.00348306,2069.0,2068.1,0.57845758]
[1772732286533,0.00509301,2068.7,2068.1,0.57845758]
[1772732286734,0.58542737,2069.0,2068.1,0.57845758]
[1772732287134,0.00509301,2068.6,2068.1,0.57845758]
[1772732287336,0.58194431,2068.7,2067.8,0.57845758]
[1772732287538,0.58703732,2068.7,2067.8,0.57845758]
[1772732287837,0.58194431,2068.7,2067.8,0.57845758]
[1772732288039,0.00509301,2068.4,2067.8,0.57845758]
[1772732288233,0.58194431,2068.7,2067.8,0.57845758]
[1772732288741,0.00509301,2068.4,2067.8,0.57845758]
[1772732288941,0.00348306,2069.0,2068.1,0.57845758]
[1772732289435,0.58542737,2069.0,2068.1,0.57845758]
[1772732289641,0.58542737,2069.0,2067.7,0.57845758]
[1772732290033,0.58194431,2068.5,2067.5,0.57845758]
[1772732290237,0.58194431,2068.3,2067.5,0.57845758]
[1772732290836,0.58194431,2068.7,2067.5,0.57845758]
[1772732291038,6.00770171,2069.0,2067.5,0.57845758]
[1772732291039,0.58194431,2068.5,2067.5,0.57845758]
[1772732291432,0.58194431,2068.3,2067.5,0.57845758]
[1772732291738,0.58194431,2068.7,2067.5,0.57845758]
[1772732292042,0.58194431,2068.5,2067.5,0.57845758]
[1772732292236,1.06167626,2068.4,2067.5,0.57845758]
[1772732292437,0.58194431,2068.3,2067.5,0.57845758]
[1772732292642,0.58194431,2068.3,2067.6,0.57845758]
[1772732292835,0.58194431,2068.6,2067.6,0.57845758]
[1772732293541,0.58194431,2068.8,2067.8,0.57845758]
[1772732293736,0.58194431,2068.6,2067.5,47.43751954]
[1772732293943,0.58194431,2068.4,2067.6,0.57845758]
[1772732294143,0.24166,2068.7,2067.4,0.57845758]
[1772732294144,0.58194431,2068.2,2067.4,0.57845758]
[1772732295241,0.58194431,2068.4,2067.4,0.57845758]
[1772732295542,0.58194431,2068.8,2067.7,0.57845758]
[1772732295744,0.58194431,2068.6,2067.7,0.57845758]
[1772732297043,0.58194431,2068.4,2067.4,0.57845758]
[1772732297444,0.58194431,2068.2,2067.4,0.57845758]
[1772732297649,0.58194431,2068.0,2067.3,0.00381661]
[1772732298647,0.58194431,2067.8,2067.0,0.57845758]
[1772732298848,0.58194431,2068.1,2067.0,0.57845758]
[1772732299153,0.58194431,2067.9,2067.1,0.57845758]
[1772732299654,0.58194431,2067.9,2067.1,0.5845636]
[1772732300345,0.58194431,2068.4,2067.5,0.57845758]
[1772732300544,0.58194431,2068.8,2067.5,0.57845758]
[1772732300753,0.58194431,2068.8,2067.3,8.71]
[1772732300754,0.58194431,2068.6,2067.7,0.57845758]
[1772732300953,0.58194431,2068.9,2067.9,0.57845758]
[1772732301155,0.58194431,2068.7,2067.5,0.57845758]
[1772732302146,0.24510306,2069.0,2067.5,0.57845758]
[1772732302147,0.58194431,2068.5,2067.5,0.57845758]
[1772732302345,0.58194431,2068.5,2067.3,0.57845758]
[1772732302548,0.58194431,2068.3,2067.3,0.57845758]
[1772732302750,0.58194431,2068.1,2067.1,0.5845636]
[1772732303644,0.47959126,2068.0,2067.1,0.00610602]
[1772732303850,0.24178,2067.6,2066.5,0.57845758]
[1772732304051,0.58194431,2067.4,2066.2,0.57845758]
[1772732304250,0.58194431,2067.4,2066.4,0.57845758]
[1772732304845,0.58194431,2067.4,2066.1,9.29945758]
[1772732305049,0.58701874,2067.4,2066.1,9.30375173]
[1772732305245,0.58701874,2067.4,2066.3,0.57845758]
[1772732306050,0.58701874,2067.4,2066.4,0.57845758]
[1772732306251,0.00507443,2067.4,2066.4,0.57845758]
[1772732306547,0.00507443,2067.4,2066.3,8.97493]
[1772732306548,0.00507443,2067.4,2066.6,0.57845758]
[1772732306756,13.4430721,2068.7,2067.0,0.57845758]
[1772732306757,0.58194431,2068.0,2067.0,0.57845758]
[1772732307759,0.58813892,2068.0,2067.0,0.57845758]
[1772732310356,0.58813892,2068.0,2066.6,0.55030918]
[1772732310357,0.24175,2067.9,2066.6,0.55030918]
[1772732310557,0.54590956,2067.8,2066.6,0.55030918]
[1772732312366,0.54590956,2067.6,2066.6,0.55030918]
[1772732312662,0.54590956,2067.4,2066.1,0.55460333]
[1772732312863,0.54590956,2067.2,2066.1,0.55460333]
[1772732313066,0.54590956,2067.2,2066.1,41.35460333]
[1772732313260,0.54590956,2067.2,2066.1,0.55460333]
[1772732313463,0.54590956,2066.8,2066.1,0.00429415]
[1772732313761,0.54590956,2066.8,2066.1,0.55460333]
[1772732313963,0.54590956,2066.8,2066.1,0.00429415]
[1772732314167,6.337,2067.1,2065.6,0.55030918]
[1772732314168,0.54590956,2066.6,2065.6,0.55030918]
[1772732314770,0.54590956,2066.4,2065.1,0.55030918]
[1772732315066,0.54590956,2066.2,2065.1,0.55518684]
[1772732315272,0.54590956,2066.2,2065.2,41.35030918]
[1772732315673,0.54590956,2066.2,2065.3,0.55030918]
[1772732316273,0.55099432,2066.4,2065.3,0.55030918]
[1772732316476,0.54590956,2066.3,2065.1,0.55518684]
[1772732317369,0.54590956,2066.3,2065.1,0.00487766]
[1772732317567,0.54590956,2066.1,2065.1,0.00487766]
[1772732317767,0.54590956,2065.9,2064.7,0.55030918]
[1772732318074,0.54590956,2065.9,2064.1,0.55030918]
[1772732318075,0.54590956,2065.3,2064.1,0.55030918]
[1772732318769,0.54590956,2065.1,2064.1,0.55632189]
[1772732318977,0.54590956,2065.1,2064.1,0.00601271]
[1772732319474,6.34,2065.0,2064.1,0.55632189]
[1772732319677,6.88590956,2065.0,2064.1,0.55632189]
[1772732320477,0.54590956,2064.9,2064.1,0.55632189]
[1772732320678,0.00405834,2064.9,2064.1,0.55632189]
[1772732321471,0.54590956,2065.4,2064.2,0.55030918]
[1772732322275,0.54590956,2065.6,2064.4,0.55030918]
[1772732322479,0.55211103,2065.6,2064.4,0.55030918]
[1772732325787,0.54590956,2065.4,2064.1,0.55632189]
[1772732326285,0.54590956,2065.4,2064.2,0.55030918]
[1772732327383,0.54590956,2065.4,2064.4,0.55030918]
[1772732327686,0.54590956,2065.2,2064.2,0.55030918]
[1772732329484,0.54590956,2065.0,2064.2,0.55030918]
[1772732329678,0.54590956,2064.8,2064.1,0.00601271]
[1772732330285,6.88890956,2064.8,2064.1,0.00601271]
[1772732330485,0.54590956,2064.7,2064.1,0.00601271]
[1772732331187,0.54590956,2065.3,2064.1,0.55632189]
[1772732331388,0.54590956,2065.1,2064.1,0.55632189]
[1772732332282,0.54590956,2065.0,2064.1,0.55632189]
[1772732332684,0.54590956,2065.0,2064.2,0.55030918]
[1772732332883,0.54590956,2065.3,2064.2,0.55030918]
[1772732333083,6.89611103,2065.6,2064.4,0.55030918]
[1772732333284,0.54590956,2065.5,2064.4,0.55030918]
[1772732334186,0.54590956,2065.4,2064.4,0.55030918]
[1772732336391,0.54590956,2065.2,2064.4,0.55030918]
[1772732337790,0.54590956,2065.4,2064.4,0.55030918]
[1772732338392,0.54590956,2065.5,2064.4,0.55030918]
[1772732339091,6.88890956,2065.5,2064.4,0.55030918]
[1772732339389,0.54590956,2065.4,2064.4,0.55030918]
[1772732340591,0.59187963,2065.1,2064.4,0.55030918]
[1772732340989,5.96006147,2065.6,2064.4,0.55030918]
[1772732340990,0.59187963,2065.3,2064.4,0.55030918]
[1772732341192,0.00620147,2065.6,2064.1,0.24820271]
[1772732341193,0.00620147,2065.6,2064.6,0.57561533]
[1772732341388,0.00620147,2065.6,2064.1,10.2997625]
[1772732341389,0.00620147,2065.6,2064.8,0.57561533]
[1772732341786,0.5980811,2065.6,2064.8,0.57561533]
[1772732342192,0.59187963,2066.2,2065.0,0.57561533]
[1772732342496,7.7399221,2066.7,2064.9,0.2421]
[1772732342497,0.59187963,2066.5,2065.4,0.57561533]
[1772732342790,3.94721091,2067.1,2065.7,0.57561533]
[1772732342996,1.07049301,2067.0,2065.8,0.57561533]
[1772732343202,0.59696971,2067.0,2065.8,0.57921633]
[1772732343496,0.59187963,2066.8,2065.8,0.57921633]
[1772732343692,0.00509008,2067.0,2065.8,0.57921633]
[1772732343892,0.00509008,2067.0,2066.0,0.57561533]
[1772732344093,0.59696971,2067.0,2066.0,0.57561533]
[1772732344797,0.59187963,2066.8,2065.8,0.57921633]
[1772732344999,0.59187963,2066.9,2065.8,0.57921633]
[1772732345197,6.93387963,2066.9,2065.8,0.57921633]
[1772732345398,0.59187963,2066.8,2065.8,0.57921633]
[1772732347000,6.93896971,2067.0,2065.8,0.57921633]
[1772732347302,0.00509008,2067.0,2066.0,0.57561533]
[1772732348003,0.59696971,2067.0,2066.0,0.57561533]
[1772732348903,0.00509008,2067.0,2066.0,0.57561533]
[1772732349711,0.59696971,2067.0,2066.0,0.57561533]
[1772732349909,0.00509008,2067.0,2066.0,0.57561533]
[1772732350102,0.00509008,2067.0,2066.1,0.57561533]
[1772732350509,0.59187963,2067.8,2066.3,0.57561533]
[1772732351515,0.5981512,2067.8,2066.3,0.57561533]
[1772732352313,0.5981512,2067.8,2066.5,0.57561533]
[1772732352709,0.5981512,2067.8,2066.9,0.57561533]
[1772732352710,0.00627157,2067.8,2066.9,0.57561533]
[1772732353413,0.59187963,2068.2,2067.0,0.57561533]
[1772732353618,0.59187963,2068.6,2067.0,0.57561533]
[1772732353813,0.59187963,2068.6,2067.2,0.57561533]
[1772732354214,0.59187963,2068.5,2067.2,0.57561533]
[1772732354411,0.59800597,2068.5,2067.2,0.57561533]
[1772732354615,6.93900597,2068.5,2067.2,0.57561533]
[1772732355114,0.59800597,2068.5,2067.2,0.57561533]
[1772732357114,0.59187963,2068.4,2067.2,0.57561533]
[1772732359512,0.59187963,2068.2,2067.2,0.57561533]
[1772732360122,0.59187963,2068.4,2067.3,0.57561533]
[1772732360316,0.59187963,2068.4,2067.3,0.57914517]
[1772732360719,0.59187963,2068.4,2067.5,0.57561533]
[1772732361818,0.00612634,2068.5,2067.5,0.57561533]
[1772732362415,0.59800597,2068.5,2067.5,0.57561533]
[1772732365221,0.59187963,2068.4,2067.3,0.57914517]
[1772732365417,0.59187963,2068.2,2067.3,0.57914517]
[1772732366328,0.59187963,2068.2,2067.3,0.00352984]
[1772732366625,0.59187963,2068.1,2067.3,0.57914517]
[1772732367528,0.55225404,2068.4,2067.3,0.57914517]
[1772732370031,0.55225404,2068.3,2067.3,0.57914517]
[1772732370225,0.57886756,2068.1,2067.3,0.00352984]
[1772732370428,0.24174,2068.0,2067.3,0.00352984]
[1772732370622,0.24174,2068.0,2066.9,0.58123023]
[1772732370623,0.57886756,2067.8,2066.9,0.58123023]
[1772732371629,0.57886756,2067.8,2066.9,0.58611069]
[1772732372531,0.24174,2068.0,2066.9,0.58611069]
[1772732372532,0.57886756,2068.0,2067.1,0.58123023]
[1772732373127,0.57886756,2068.0,2066.9,0.58611069]
[1772732373528,0.57886756,2067.8,2066.9,0.58611069]
[1772732376333,0.57886756,2067.6,2066.9,0.58611069]
[1772732376635,0.57886756,2067.0,2066.1,0.58123023]
[1772732377231,0.57886756,2066.8,2066.1,0.58123023]
[1772732377435,0.5845046,2066.8,2066.1,0.00452593]
[1772732378833,0.00563704,2066.8,2066.1,0.58575616]
[1772732379334,6.338,2067.3,2066.1,0.58575616]
[1772732379335,6.91686756,2067.3,2066.1,0.58575616]
[1772732379535,6.91686756,2067.3,2066.3,0.58123023]
[1772732379536,0.57886756,2067.3,2066.3,0.58123023]
[1772732380637,0.58339775,2067.3,2066.3,0.58123023]
[1772732381433,0.57886756,2067.2,2066.3,0.58123023]
[1772732382133,0.82070756,2067.2,2066.1,0.00452593]
[1772732382340,0.57886756,2067.0,2066.1,0.00452593]
[1772732383440,0.57886756,2066.8,2066.1,0.00452593]
[1772732385437,6.91786756,2066.8,2066.1,0.00452593]
[1772732385635,0.57886756,2066.7,2066.1,0.00452593]
[1772732386943,0.57886756,2066.7,2066.1,0.58575616]
[1772732387340,0.57886756,2066.8,2066.1,0.58575616]
[1772732387740,0.57886756,2066.8,2066.1,0.00452593]
[1772732388338,0.57886756,2066.8,2066.1,0.58575616]
[1772732391244,0.57886756,2067.1,2066.1,0.58575616]